Cogmind - Beta 14 @@@ ROGUE MODE // 2024.09.15 @ 12:03:42 Player: Raven Result: Destroyed by as-91864 with Assembled Maul Performance ------------- Evolutions (0) 0 Regions Visited (2) 400 Robots Destroyed (19) 95 Value Destroyed (417) 417 Prototype IDs (0) 0 Alien Tech Used (0) 0 Bonus (0) 0 TOTAL SCORE: 912 Bonus ------- None Cogmind --------- Core Integrity 0/250 Matter 245/300 Energy 100/100 System Corruption 4% Temperature Cool (20) Movement Walking (120) Location -10/Mines Parts ------- > --- POWER (1) -------- (None) > --- PROPULSION (2) --- Aluminum Leg > --- UTILITY (2) ------ Small Storage Unit > --- WEAPON (2) ------- (None) > --- INVENTORY (8) ---- Light Ion Engine Aluminum Leg Advanced Beam Cannon Advanced Beam Cannon Advanced Beam Cannon Advanced Beam Cannon Light Assault Rifle Peak State ------------ > --- POWER ------------ Light Ion Engine > --- PROPULSION ------- Aluminum Leg Aluminum Leg > --- UTILITY ---------- Small Storage Unit Light Armor Plating > --- WEAPON ----------- Beam Rifle Beam Rifle > --- INVENTORY -------- Ion Engine Aluminum Leg Signal Interpreter Advanced Beam Cannon Advanced Beam Cannon Advanced Beam Cannon Advanced Beam Cannon Light Assault Rifle [Rating: 10] Favorites ----------- Power Light Ion Engine Engine Light Ion Engine Propulsion Aluminum Leg Leg Aluminum Leg Flight Unit Flight Unit Utility Small Storage Unit Storage Small Storage Unit Processor Signal Interpreter Protection Light Armor Plating Weapon Beam Rifle Energy Gun Beam Rifle Ballistic Gun Light Assault Rifle Build | -11 -10 -10 ------- Run | Yrd Mat Min Slots Evolved . | . . . Power . | . . . Propulsion . | . . . Utility . | . . . Weapon . | . . . Parts Attached 30 | 6 24 . Power 4 | 1 3 . Engine 4 | 1 3 . Core . | . . . Reactor . | . . . Propulsion 11 | 2 9 . Treads . | . . . Leg 10 | 2 8 . Wheel . | . . . Hover . | . . . Flight 1 | . 1 . Utility 7 | . 7 . Device . | . . . Storage 1 | . 1 . Processor 5 | . 5 . Hackware . | . . . Protection 1 | . 1 . Artifact . | . . . Weapon 8 | 3 5 . Energy Gun 4 | 1 3 . Energy Cannon . | . . . Ballistic Gun 4 | 2 2 . Ballistic Cannon . | . . . Launcher . | . . . Special Weapon . | . . . Impact Weapon . | . . . Slashing Weapon . | . . . Piercing Weapon . | . . . Special Melee Weapon . | . . . Unidentified Prototypes . | . . . Parts Lost 10 | . 5 5 Power 3 | . 2 1 Propulsion 1 | . . 1 Utility 3 | . 2 1 Weapon 3 | . 1 2 Highest Loss Streak 5 | . 2 5 To Critical Strikes . | . . . Average Slot Usage (%) 91 | . 91 100 Engine 13 | . 13 14 Leg 25 | . 24 28 Flight 1 | . 1 . Storage 7 | . 7 14 Processor 14 | . 14 14 Protection 4 | . 4 . Energy Gun 14 | . 14 14 Ballistic Gun 9 | . 9 14 Peak Build Rating 10 | 5 10 9 Average Rating 7 | 3 7 8 On Entrance 4 | . 5 9 Naked Turns . | . . . Heaviest Build 17 | 7 17 15 Greatest Support 20 | 20 20 20 Greatest Overweight (x) 1 | . 1 . Average Overweight (x) . | . . . Largest Inventory Capacity 8 | 5 8 8 Average Capacity 6 | 5 6 8 Most Carried 8 | 5 8 7 Average Carried 5 | 3 5 7 Final Capacity 8 | 5 8 8 Final Carried 7 | 5 7 7 Class Distribution -------------------- 86% | Mutant 13% | Scavenger-Mutant Dominant Class ---------------- Mutant | -10/Materials Mutant | -10/Mines Resources | -11 -10 -10 ----------- Run | Yrd Mat Min Matter Collected 550 | 272 278 . Remotely . | . . . Salvage Created 631 | 50 548 33 Parts 46 | 5 41 . Haulers Intercepted 1 | . 1 . Recyclers Shooed 2 | . 2 . Parts Field Recycled . | . . . Retrieved Matter . | . . . Parts Self-Destructed . | . . . Prevented . | . . . Kills | -11 -10 -10 ------- Run | Yrd Mat Min Combat Hostiles Destroyed 15 | 1 12 2 Guns 15 | 1 12 2 Classes Destroyed 6 | 2 3 1 Worker 3 | 1 2 . Hauler 1 | . 1 . Watcher 2 | . 2 . Swarmer 3 | . 3 . Grunt 10 | 1 9 . Assembled 2 | . . 2 Best Kill Streak 4 | 2 4 2 Combat Bots Only 4 | 1 4 2 Max Kills in Single Turn 1 | 1 1 1 Gunslinging . | . . . Exploded . | . . . Melee . | . . . Uniques/NPCs Destroyed . | . . . Combat | -11 -10 -10 -------- Run | Yrd Mat Min Hostile Shots Fired 145 | 2 106 37 Missed 38 | 1 26 11 Damage Taken 1291 | 12 867 412 Core 264 | 12 148 104 Absorbed by Shields . | . . . Core Remaining (%) 95 | 95 . . Volleys Fired 123 | 8 108 7 Largest 2 | 2 2 2 Hottest 112 | 60 112 76 Shots Fired 168 | 16 141 11 Gun 168 | 16 141 11 Cannon . | . . . Launcher . | . . . Special . | . . . Kinetic 98 | 8 83 7 Thermal 59 | . 55 4 Explosive . | . . . Electromagnetic 11 | 8 3 . Robot Hit Streak 7 | 2 7 5 Robot Miss Streak 4 | 2 4 1 Penetration Max . | . . . Secondary Targets 2 | . 2 . Max Gunslinging Chain 1 | . 1 . Shots Hit Robots 95 | 4 83 8 Core Hits 36 | 3 29 4 Critical Kills . | . . . Critical Parts Destroyed . | . . . Critical Strikes 2 | . 1 1 Burn 2 | . 1 1 Melee Attacks . | . . . Impact . | . . . Slashing . | . . . Piercing . | . . . Sneak Attacks . | . . . Combat Hostiles . | . . . Follow-up Attacks . | . . . Damage Inflicted 1035 | 53 879 103 Guns 1035 | 53 879 103 Cannons . | . . . Explosions . | . . . Melee . | . . . Ramming . | . . . Kinetic 543 | 27 456 60 Thermal 422 | . 379 43 Explosive . | . . . Electromagnetic 70 | 26 44 . Impact . | . . . Slashing . | . . . Piercing . | . . . Highest Corruption 4 | . . 4 Average Corruption 4 | . . 4 Corruption Purged . | . . . Corruption Blocked . | . . . Overload Shots . | . . . Overflow Damage . | . . . Projectiles . | . . . Explosions . | . . . Melee . | . . . Knockbacks . | . . . Impact . | . . . Kinetic . | . . . Secondary . | . . . Self-Inflicted Damage . | . . . Shots . | . . . Rammed . | . . . Targets Rammed . | . . . Kicked . | . . . Crushed . | . . . Highest Temperature 364 | 6 364 45 Average Temperature 109 | 6 119 22 Received Heat Transfer 430 | 6 384 40 Effects 2 | . 2 . Interference 2 | . 2 . Siege Activations . | . . . Robots Corrupted . | . . . Combat Hostiles . | . . . Parts Fried . | . . . Impact Corruptions . | . . . Robots Melted . | . . . Combat Hostiles . | . . . Parts Melted . | . . . Heat Transferred 1221 | . 1036 185 Parts Sabotaged . | . . . Parts Stolen . | . . . Parts Stripped . | . . . Power Chain Reactions . | . . . Alert | -11 -10 -10 ------- Run | Yrd Mat Min Peak Influence 216 | 25 216 82 Initial 82 | . 16 82 Average 87 | 8 96 79 Maximum Alert Level 1 | . 1 . Low Security (%) 91 | 100 89 100 Level 1 8 | . 10 . Level 2 . | . . . Level 3 . | . . . Level 4 . | . . . Level 5 . | . . . High Security . | . . . Max Security . | . . . Squads Dispatched 3 | . 3 . Investigation 2 | . 2 . Extermination . | . . . Reinforcement 1 | . 1 . Assault . | . . . Garrison . | . . . Intercept . | . . . Searches Triggered . | . . . Construction Impeded . | . . . Haulers Reinforced . | . . . Active Scanning Responses . | . . . Cargo Convoy Interrupts . | . . . Stealth | -11 -10 -10 --------- Run | Yrd Mat Min Distress Signals . | . . . Communications Jammed . | . . . Distress Signals . | . . . Times Spotted 35 | 1 23 11 Peak Tracking Total 11 | 1 5 11 Tactical Retreats 4 | . 3 1 Traps | -11 -10 -10 ------- Run | Yrd Mat Min Traps Triggered 3 | . 3 . Indirectly . | . . . Trap Hack Attempts . | . . . Triggered . | . . . Disarmed . | . . . Reprogrammed . | . . . Reused . | . . . Traps Extracted . | . . . Installed . | . . . Triggered . | . . . Machines | -11 -10 -10 ---------- Run | Yrd Mat Min Machines Disabled 1 | . 1 . Max in Single Turn 1 | . 1 . Machines Repaired . | . . . Machines Dismantled . | . . . Machines Sabotaged . | . . . Overloaded Fab Kills . | . . . Hacking | -11 -10 -10 --------- Run | Yrd Mat Min Machines Accessed 3 | . 3 . Terminals 3 | . 3 . Fabricators . | . . . Repair Stations . | . . . Recycling Units . | . . . Scanalyzers . | . . . Garrison Access . | . . . Total Hacks 15 | . 15 . Successful 7 | . 7 . Failed 8 | . 8 . Catastrophic 1 | . 1 . Database Lockouts . | . . . Manual . | . . . Terminals 15 | . 15 . Fabricators . | . . . Repair Stations . | . . . Recycling Units . | . . . Scanalyzers . | . . . Garrison Access . | . . . Terminal Hacks 7 | . 7 . Record 6 | . 6 . Alert Level 1 | . 1 . Fabricator Hacks . | . . . Repair Station Hacks . | . . . Recycling Unit Hacks . | . . . Scanalyzer . | . . . Garrison Access Hacks . | . . . Unauthorized Hacks . | . . . Terminals . | . . . Fabricators . | . . . Repair Stations . | . . . Recycling Units . | . . . Scanalyzers . | . . . Garrison Access . | . . . Data Cores Recovered . | . . . Used . | . . . Hacking Detections 3 | . 3 . Full Trace Events 3 | . 3 . Feedback Events . | . . . Feedback Blocked . | . . . Robot Schematics Acquired . | . . . Robots Built . | . . . Authchips . | . . . Time . | . . . Total Robot Build Rating . | . . . Part Schematics Acquired . | . . . Parts Built . | . . . Authchips . | . . . Time . | . . . Total Part Build Rating . | . . . Parts Repaired . | . . . Time . | . . . Parts Recycled . | . . . Recycled Matter . | . . . Retrieved Matter . | . . . Retrieved Components . | . . . Parts Scanalyzed . | . . . Part Schematics Acquired . | . . . Parts Damaged . | . . . Bothacking | -11 -10 -10 ------------ Run | Yrd Mat Min Used RIF Installer . | . . . Robots Hacked . | . . . Non-combat . | . . . Combat . | . . . Robot Hacks Applied . | . . . Relay Couplers Released . | . . . Fabnet Peak Effective % . | . . . Robots Rewired . | . . . Allies Hacked . | . . . Hacks Repelled . | . . . Allies | -11 -10 -10 -------- Run | Yrd Mat Min Total Allies . | . . . Largest Group . | . . . Highest-Rated Group . | . . . Highest-Rated Ally . | . . . Total Orders . | . . . Ally Attacks . | . . . Total Damage . | . . . Kills . | . . . Allies Corrupted . | . . . Allies Melted . | . . . Intel | -11 -10 -10 ------- Run | Yrd Mat Min Robot Analysis Total . | . . . Derelict Logs Recovered 1 | . . 1 Drone Launches . | . . . Drone Recoveries . | . . . Exploration | -11 -10 -10 ------------- Run | Yrd Mat Min Turns Passed 1255 | 111 1068 76 Spaces Moved 711 | 68 595 48 Core 23 | 20 3 . Treads . | . . . Legs 688 | 48 592 48 Wheels . | . . . Hover . | . . . Flight . | . . . Fastest Speed 50 | 50 50 120 Average Speed 117 | 99 119 120 Slowest Speed 120 | 120 120 120 Overloaded Moves . | . . . Propulsion Burnouts . | . . . Robots Hopped . | . . . Cave-ins Triggered . | . . . Exploration Rate (%) 30 | 5 72 13 Regions Visited 2 Branch Regions 1 Pre-discovered Areas . | . . . Known Exits Taken . | . . . Unknown Exits Taken 2 | 1 1 . Scrap Searched . | . . . Spaces Dug . | . . . Terrain Destroyed . | . . . Melee . | . . . Projectile . | . . . AOE . | . . . Terrain Rammed . | . . . Walls Destroyed . | . . . Machines Disabled . | . . . Actions | -11 -10 -10 --------- Run | Yrd Mat Min Total 981 | 95 830 56 Wait 52 | 4 47 1 Move 709 | 67 594 48 Hop . | . . . Pick Up 47 | 10 37 . Fast Attach . | . . . Attach 20 | 5 15 . Detach . | . . . Swap 10 | 1 9 . Drop 20 | . 20 . Fire 123 | 8 108 7 Melee . | . . . Ram . | . . . Kick . | . . . Crush . | . . . Escape Stasis . | . . . Rewire . | . . . Trap . | . . . Miscellaneous . | . . . Route ------- -11/Scrapyard -10/Materials (discovered 4 exits: [*Mat x3] / [*Min]) -10/Mines History --------- Turn | Location | Event 2 | -11/Scrapyard | Met Revision 17 71 | -11/Scrapyard | Discovered new exit (range 8) 112 | -11/Scrapyard | Entered Materials 312 | -10/Materials | Build established: Mutant 424 | -10/Materials | Discovered new exit (range 13) 512 | -10/Materials | Discovered new exit (range 15) 681 | -10/Materials | Discovered new exit (range 15) 994 | -10/Materials | Discovered new exit (range 12) 1095 | -10/Materials | Core integrity fell below 50% 1180 | -10/Materials | Entered Mines 1202 | -10/Mines | Assembled infested the area 1205 | -10/Mines | Learned Materials emergency access door positions 1207 | -10/Mines | Assisted by a Guerilla fighting off Assembled 1252 | -10/Mines | Core integrity fell below 20% 1256 | -10/Mines | Destroyed by as-91864 with Assembled Maul Last Messages --------------- come on!" ZO-0UG(h): "I'll hold them off! Go on ahead or try to find another way!" HV Slug penetrates as-22042. as-22042 knocked back. HV Slug penetrates Wall. HV Slug penetrates as-22042. HV Slug penetrates Wall. ZO-0UG(h) destroyed. as-82718 suffers critical hit (Burn). as-82718 destroyed. Beam Rifle destroyed. Aluminum Leg destroyed. T-07 Excavator destroyed. Ion Engine destroyed. Targeting Computer destroyed. System corrupted by crushing effect (+3). System corrupted by crushing effect (+1). as-97471 destroyed. Assault Rifle destroyed. Map ----- +----------------------------------------------------+ | ??????????????????????????????? | | ??????????????????????????????? | | ??????????????????????????????? | | ??????????????????????????????? | | ???#??????????????????????????? | | ???# ?????????????????????????? | | ??## ????????????????????????? | | ?"# #???????????????????????? | | ?# #??????????????????????? | | ?# #?????????????????????? | | ??# #?####???????????????? | | ???# ## ##??????????????? | | ???#" %] ####???????????? | | ?????# #???????????? | | ?????# #???????????? | | ????# ##### #???????????? | | ??# ??????# #???????????? | | ?# ????????# #???????????? | | ?# ??????????# #########???? | | ?##????????????# #???? | | ???????????????# ####### #???? | | ???????????????# #?????#a#???? | | ???????????????# ###???# #???? | | ???????????????# #???# #???? | | ???????????????# #???# ##??? | | ???????????????#### #?###@ ##?? | | ??????????????????# ###%%a #?? | | ??????????????????# a #? | | ??????????????????# aa a #? | | ??????????????????# ##### ##? | | ??????????????????# #???#a###?? | | ??????????????????# #???# #???? | | ???????????????#### #???# #???? | | ??????????????## ##??# #???? | | ??????????????# #### #???? | | ??????????????# #???? | | ??????????????## ####????? | | ???????????????### #???????? | | ?????????????????## ##???????? | | ???????????????????###????????? | | ??????????????????????????????? | | | | | | | | | | | | | | | | | | | +----------------------------------------------------+ Best States ------------- Heat Dissipation 25 Energy Generation 10 Energy Capacity 250 Matter Stores 300 Matter Capacity 300 Sight Range 18 Terrain Scan Density 10 Armor Coverage 150 Evasion (%) 55 Targeting Accuracy 5 Item Schematics ----------------- None Robot Schematics ------------------ None Fabricated ------------ Nothing Alien Tech Used ----------------- None Achievements -------------- Loot Pinata One Hack Too Far Challenges ------------ None Game ------ Seed HoverPointTendrils Manual? 0 Play Time 00:58:46 Cumulative 1.9 hours Start 2024.09.14 @ 21:51:26 End 2024.09.15 @ 12:03:42 Sessions 4 Manual Loads 0 Difficulty Rogue Special Mode None Game No. 2 Rogue 2 Adventurer 0 Explorer 0 Win Type - Total 0 Types 0/0/0/0/0/0/0/0/0 Lore% 0 Gallery% 2 Achievement% 1 Wizard Run 0 Options --------- Layout 1 ASCII 0 Keyboard 0 Movement Numpad Keybinds 0 Fullscreen 1 Font 24/Smallcaps Map View 25x17 Zoom Use 77% Tactical HUD 0 Map Filters NONE Filters NONE Steam 1 RUN: 6d03a82e-4a2a-43fb-8545-03209fa6ce7e